Cogmind - Beta 14 @@@ ROGUE MODE // 2025.04.28 @ 19:24:19 Player: Zonalar Result: Destroyed by G-34 Mercenary with Small Laser Performance ------------- Evolutions (0) 0 Regions Visited (1) 200 Robots Destroyed (14) 70 Value Destroyed (357) 357 Prototype IDs (0) 0 Alien Tech Used (0) 0 Bonus (0) 0 TOTAL SCORE: 627 Bonus ------- None Cogmind --------- Core Integrity 0/250 Matter 299/300 Energy 83/100 System Corruption 1% Temperature Cool (6) Movement Treading (240) Ox1 Location -10/Materials Parts ------- > --- POWER (1) -------- (None) > --- PROPULSION (2) --- Light Treads > --- UTILITY (2) ------ Large Storage Unit > --- WEAPON (2) ------- EM Pulse Gun Light Assault Rifle > --- INVENTORY (15) --- Light Ion Engine Small Storage Unit Small Matter Pod (50) Structural Scanner Seismic Detector Medium Laser Small Laser Small Laser Peak State ------------ > --- POWER ------------ Light Ion Engine > --- PROPULSION ------- Light Treads Light Treads > --- UTILITY ---------- Small Storage Unit Improved Terrain Scanner > --- WEAPON ----------- EM Pulse Gun Medium Laser > --- INVENTORY -------- Light Ion Engine Aluminum Leg Light Assault Rifle [Rating: 9] Favorites ----------- Power Light Ion Engine Engine Light Ion Engine Propulsion Light Treads Treads Light Treads Leg Aluminum Leg Utility Small Storage Unit Device Improved Terrain Scanner Storage Small Storage Unit Weapon Medium Laser Energy Gun Medium Laser Ballistic Gun Light Assault Rifle Build | -11 -10 ------- Run | Yrd Mat Slots Evolved . | . . Power . | . . Propulsion . | . . Utility . | . . Weapon . | . . Parts Attached 18 | 8 10 Power 2 | 1 1 Engine 2 | 1 1 Core . | . . Reactor . | . . Propulsion 4 | 3 1 Treads 3 | 2 1 Leg 1 | 1 . Wheel . | . . Hover . | . . Flight . | . . Utility 7 | 2 5 Device 5 | 1 4 Storage 2 | 1 1 Processor . | . . Hackware . | . . Protection . | . . Artifact . | . . Weapon 5 | 2 3 Energy Gun 4 | 2 2 Energy Cannon . | . . Ballistic Gun 1 | . 1 Ballistic Cannon . | . . Launcher . | . . Special Weapon . | . . Impact Weapon . | . . Slashing Weapon . | . . Piercing Weapon . | . . Special Melee Weapon . | . . Unidentified Prototypes . | . . Parts Lost 5 | . 5 Power 1 | . 1 Propulsion 2 | . 2 Utility 1 | . 1 Weapon 1 | . 1 Highest Loss Streak 5 | . 5 To Critical Strikes . | . . Average Slot Usage (%) 95 | . 95 Engine 12 | . 12 Treads 26 | . 26 Device 12 | . 12 Storage 14 | . 14 Energy Gun 19 | . 19 Ballistic Gun 7 | . 7 Peak Build Rating 9 | 9 9 Average Rating 6 | 6 7 On Entrance 4 | . 9 Naked Turns . | . . Heaviest Build 29 | 13 29 Greatest Support 40 | 40 40 Greatest Overweight (x) 1 | . 1 Average Overweight (x) . | . . Largest Inventory Capacity 15 | 8 15 Average Capacity 7 | 6 10 Most Carried 9 | 5 9 Average Carried 4 | 3 7 Final Capacity 15 | 8 15 Final Carried 8 | 5 8 Class Distribution -------------------- 100% | Mutant Dominant Class ---------------- Mutant | -10/Materials Resources | -11 -10 ----------- Run | Yrd Mat Matter Collected 477 | 257 220 Remotely . | . . Salvage Created 527 | 71 456 Parts 28 | 7 21 Haulers Intercepted . | . . Recyclers Shooed 1 | . 1 Parts Field Recycled . | . . Retrieved Matter . | . . Parts Self-Destructed . | . . Prevented . | . . Kills | -11 -10 ------- Run | Yrd Mat Combat Hostiles Destroyed 8 | . 8 Guns 7 | . 7 AOE 1 | . 1 Classes Destroyed 4 | 1 3 Tunneler 3 | 3 . Recycler 1 | . 1 Watcher 2 | . 2 Grunt 8 | . 8 Best Kill Streak 4 | 1 4 Combat Bots Only 3 | . 3 Max Kills in Single Turn 1 | 1 1 Gunslinging . | . . Exploded 1 | . 1 Melee . | . . Uniques/NPCs Destroyed . | . . Combat | -11 -10 -------- Run | Yrd Mat Hostile Shots Fired 65 | . 65 Missed 11 | . 11 Damage Taken 784 | . 784 Core 257 | . 257 Absorbed by Shields . | . . Core Remaining (%) 100 | 100 . Volleys Fired 66 | 14 52 Largest 2 | 2 2 Hottest 90 | 90 90 Shots Fired 118 | 16 102 Gun 118 | 16 102 Cannon . | . . Launcher . | . . Special . | . . Kinetic 42 | . 42 Thermal 57 | 14 43 Explosive . | . . Electromagnetic 19 | 2 17 Robot Hit Streak 7 | 7 7 Robot Miss Streak 6 | 2 6 Penetration Max . | . . Secondary Targets . | . . Shots Hit Robots 73 | 13 60 Core Hits 27 | 3 24 Critical Kills 1 | . 1 Critical Parts Destroyed . | . . Critical Strikes 6 | 2 4 Burn 5 | 2 3 Destroy 1 | . 1 Melee Attacks . | . . Impact . | . . Slashing . | . . Piercing . | . . Sneak Attacks . | . . Combat Hostiles . | . . Follow-up Attacks . | . . Damage Inflicted 889 | 169 720 Guns 821 | 169 652 Cannons . | . . Explosions 68 | . 68 Melee . | . . Ramming . | . . Kinetic 257 | . 257 Thermal 514 | 139 375 Explosive . | . . Electromagnetic 118 | 30 88 Impact . | . . Slashing . | . . Piercing . | . . Highest Corruption 1 | . 1 Average Corruption 1 | . 1 Corruption Purged . | . . Corruption Blocked . | . . Effects 2 | . 2 Matter Fused 1 | . 1 Heat Flow Errors 1 | . 1 Overload Shots . | . . Overflow Damage 3 | . 3 Projectiles . | . . Explosions 3 | . 3 Melee . | . . Knockbacks . | . . Impact . | . . Kinetic . | . . Secondary . | . . Self-Inflicted Damage 60 | . 60 Shots 2 | . 2 Rammed . | . . Targets Rammed . | . . Kicked . | . . Crushed . | . . Highest Temperature 352 | 90 352 Average Temperature 123 | 34 142 Received Heat Transfer 411 | . 411 Effects 4 | . 4 Energy Bleed 1 | . 1 Interference 2 | . 2 Short Circuit 1 | . 1 Siege Activations . | . . Robots Corrupted . | . . Combat Hostiles . | . . Parts Fried . | . . Impact Corruptions . | . . Robots Melted . | . . Combat Hostiles . | . . Parts Melted 2 | 2 . Heat Transferred 1716 | 555 1161 Parts Sabotaged . | . . Parts Stolen . | . . Parts Stripped . | . . Power Chain Reactions 2 | . 2 Alert | -11 -10 ------- Run | Yrd Mat Peak Influence 167 | 5 167 Initial 3 | . 3 Average 15 | . 61 Maximum Alert Level . | . . Low Security (%) 100 | 100 100 Level 1 . | . . Level 2 . | . . Level 3 . | . . Level 4 . | . . Level 5 . | . . High Security . | . . Max Security . | . . Squads Dispatched 3 | . 3 Investigation 1 | . 1 Extermination . | . . Reinforcement 2 | . 2 Assault . | . . Garrison . | . . Intercept . | . . Searches Triggered . | . . Construction Impeded . | . . Haulers Reinforced . | . . Active Scanning Responses . | . . Cargo Convoy Interrupts . | . . Stealth | -11 -10 --------- Run | Yrd Mat Distress Signals 1 | . 1 Communications Jammed . | . . Distress Signals . | . . Times Spotted 17 | . 17 Peak Tracking Total 4 | . 4 Tactical Retreats 3 | . 3 Traps | -11 -10 ------- Run | Yrd Mat Traps Triggered 2 | . 2 Indirectly . | . . Trap Hack Attempts . | . . Triggered . | . . Disarmed . | . . Reprogrammed . | . . Reused . | . . Traps Extracted . | . . Installed . | . . Triggered . | . . Machines | -11 -10 ---------- Run | Yrd Mat Machines Disabled . | . . Max in Single Turn . | . . Machines Repaired . | . . Machines Dismantled . | . . Machines Sabotaged . | . . Overloaded Fab Kills . | . . Hacking | -11 -10 --------- Run | Yrd Mat Machines Accessed 1 | . 1 Terminals 1 | . 1 Fabricators . | . . Repair Stations . | . . Recycling Units . | . . Scanalyzers . | . . Garrison Access . | . . Total Hacks 3 | . 3 Successful 1 | . 1 Failed 2 | . 2 Catastrophic 1 | . 1 Database Lockouts . | . . Manual . | . . Terminals 3 | . 3 Fabricators . | . . Repair Stations . | . . Recycling Units . | . . Scanalyzers . | . . Garrison Access . | . . Terminal Hacks 1 | . 1 Zone Layout 1 | . 1 Fabricator Hacks . | . . Repair Station Hacks . | . . Recycling Unit Hacks . | . . Scanalyzer . | . . Garrison Access Hacks . | . . Unauthorized Hacks . | . . Terminals . | . . Fabricators . | . . Repair Stations . | . . Recycling Units . | . . Scanalyzers . | . . Garrison Access . | . . Data Cores Recovered . | . . Used . | . . Hacking Detections 1 | . 1 Full Trace Events . | . . Feedback Events . | . . Feedback Blocked . | . . Robot Schematics Acquired . | . . Robots Built . | . . Authchips . | . . Time . | . . Total Robot Build Rating . | . . Part Schematics Acquired . | . . Parts Built . | . . Authchips . | . . Time . | . . Total Part Build Rating . | . . Parts Repaired . | . . Time . | . . Parts Recycled . | . . Recycled Matter . | . . Retrieved Matter . | . . Retrieved Components . | . . Parts Scanalyzed . | . . Part Schematics Acquired . | . . Parts Damaged . | . . Bothacking | -11 -10 ------------ Run | Yrd Mat Used RIF Installer . | . . Robots Hacked . | . . Non-combat . | . . Combat . | . . Robot Hacks Applied . | . . Relay Couplers Released . | . . Fabnet Peak Effective % . | . . Robots Rewired . | . . Allies Hacked . | . . Hacks Repelled . | . . Allies | -11 -10 -------- Run | Yrd Mat Total Allies . | . . Largest Group . | . . Highest-Rated Group . | . . Highest-Rated Ally . | . . Total Orders . | . . Ally Attacks . | . . Total Damage . | . . Kills . | . . Allies Corrupted . | . . Allies Melted . | . . Intel | -11 -10 ------- Run | Yrd Mat Robot Analysis Total . | . . Derelict Logs Recovered . | . . Drone Launches . | . . Drone Recoveries . | . . Exploration | -11 -10 ------------- Run | Yrd Mat Turns Passed 2248 | 1698 550 Spaces Moved 417 | 224 193 Core 6 | 6 . Treads 408 | 215 193 Legs 3 | 3 . Wheels . | . . Hover . | . . Flight . | . . Fastest Speed 50 | 50 160 Average Speed 159 | 156 162 Slowest Speed 240 | 160 240 Overloaded Moves . | . . Propulsion Burnouts . | . . Robots Hopped . | . . Cave-ins Triggered . | . . Exploration Rate (%) 35 | 26 44 Regions Visited 1 Branch Regions . Pre-discovered Areas . | . . Known Exits Taken . | . . Unknown Exits Taken 1 | 1 . Scrap Searched . | . . Spaces Dug . | . . Terrain Destroyed 7 | . 7 Melee . | . . Projectile . | . . AOE 7 | . 7 Terrain Rammed . | . . Walls Destroyed . | . . Machines Disabled . | . . Actions | -11 -10 --------- Run | Yrd Mat Total 1891 | 1555 336 Wait 1365 | 1298 67 Move 416 | 223 193 Hop . | . . Pick Up 21 | 12 9 Fast Attach . | . . Attach 9 | 7 2 Detach . | . . Swap 9 | 1 8 Drop 5 | . 5 Fire 66 | 14 52 Melee . | . . Ram . | . . Kick . | . . Crush . | . . Escape Stasis . | . . Rewire . | . . Trap . | . . Miscellaneous . | . . Route ------- -11/Scrapyard -10/Materials (discovered 1 exit: [*Mat]) History --------- Turn | Location | Event 20 | -11/Scrapyard | Discovered new exit (range 16) 1699 | -11/Scrapyard | Entered Materials 1700 | -10/Materials | Build established: Mutant 1932 | -10/Materials | Discovered new exit (range 11) 2164 | -10/Materials | Core integrity fell below 50% 2193 | -10/Materials | Core integrity fell below 20% 2239 | -10/Materials | Lost 5 parts (1p2n1u1w) 2249 | -10/Materials | Destroyed by G-34 Mercenary with Small Laser Last Messages --------------- 02218_ K-01 Serf collects debris. 02220_ Acquired Sml. Laser. 02221_ K-01 Serf collects debris. 02223_ Acquired Sml. Laser. 02226_ K-01 Serf collects debris. 02231_ W-16 Scout sends out distress signal. 02234_ K-01 Serf collects debris. 02235_ W-16 Scout destroyed. 02236_ R-06 Scavenger collects Imp. Heat Sink. 02237_ K-01 Serf collects debris. 02238_ Acquired 2 matter. 02239_ R-06 Scavenger collects Signal Interpreter. 02241_ K-01 Serf collects debris. 02242_ Acquired 1 matter. 02242_ K-01 Serf collects debris. 02243_ R-06 Scavenger collects Aluminum Leg. 02244_ Acquired 1 matter. 02245_ K-01 Serf collects debris. Map ----- +----------------------------------------------------+ | ???????????????????????????????????????? | | ???????????????????????????????????????? | | ???????????????????????????????????????? | | ???????????????????????????????????????? | | ???????????????????????????????????????? | | ???????????????????????????????????????? | | ???????????????????????????????????????? | | ???????????????????????????????????????? | | ???????????????????????????????????????? | | ???????????????????????????????????????? | | ???????????????????????????????????????? | | ???????????????????????????????????????? | | ???????????????????????????????????????? | | ???????????????????????????????????????? | | ???????????????????????????????????????? | | ???????????????????????????????????????? | | ???????????????????????????????????????? | | ???????????? ??????????????????????????? | | ???????????? ##+??????????????????????? | | ??????????? ???#??#??????????????? | | ??????????? ???#????# ???????????? | | ?????????? ????#?????????? #???? | | ??????????% #########+### #???? | | ?????????? k #???? | | ????????? = #???? | | ?????? ? ! k %= @ #???? | | ?????? ! %########??????? | | ??????# #?????????????? | | ??????# a #?????????????? | | ??????# #?????????????? | | ??????# g #?????????#???? | | ?? ???# %=#?#?#??????#??? | | ??? ??# ###########*#?#???????????? | | ?????# ###########+#???????##????? | | ????# # = %#?????#???????? | | ####^ # !#??#??????????? | | # #???????#?#???? | | # #???##????????# | | """ "T" / #???????#?????? | | """ # ! #?????#???????? | | """ # #???#?????????? | | ###" "########???#???##????? | | # #"R"#???#??#?????????????? | | """ """ """#???????##???????????? | | """ """ # #?????#???#?#?#??????? | | """ """ # #????????#????#???????? | | # #????????????????#????? | | ###############?#??????????? | | ###############????????????? | | ######### ######## ##????????????? | +----------------------------------------------------+ Best States ------------- Heat Dissipation 25 Energy Generation 10 Energy Capacity 250 Matter Stores 300 Matter Capacity 300 Sight Range 16 Terrain Scan Range 16 Terrain Scan Density 10 Evasion (%) 45 Recoil Reduction 2 Item Schematics ----------------- None Robot Schematics ------------------ None Fabricated ------------ Nothing Alien Tech Used ----------------- None Achievements -------------- None Challenges ------------ None Game ------ Seed ZioniteRecyclingComputer Manual? 0 Play Time 00:23:45 Cumulative 19.9 hours Start 2025.04.28 @ 18:57:50 End 2025.04.28 @ 19:24:19 Sessions 1 Manual Loads 0 Difficulty Rogue Special Mode None Game No. 8 Rogue 8 Adventurer 0 Explorer 0 Win Type - Total 0 Types 0/0/0/0/0/0/0/0/0 Lore% 6 Gallery% 17 Achievement% 16 Wizard Run 0 Options --------- Layout 1 ASCII 0 Keyboard 0 Movement Mouse Keybinds 1 Fullscreen 2 Font 32/SmallcapsGlow Map View 50x35 Zoom Use 0% Tactical HUD 1 Map Filters NONE Filters NONE Steam 1 RUN: 21ee4d48-506d-44fc-80e4-b34cd4770be3